bitfinex/quotes_ETHUSD_20240822
["timestamp","ask_amount","ask_price","bid_price","bid_amount"]
[1724343456971,3.84196,2602.9,2602.6,64.29797]
[1724343457189,3.84201,2602.8,2602.6,64.29797]
[1724343457364,3.84178,2603.0,2602.7,2.2904]
[1724343457761,6.6115,2603.2,2602.7,2.2904]
[1724343457963,3.84131,2603.3,2602.7,2.36723854]
[1724343458177,3.84121,2603.4,2602.7,2.2904]
[1724343458413,7.68242,2603.4,2602.8,7.77434067]
[1724343458713,3.84099,2603.5,2602.9,0.07682918]
[1724343458858,3.84089,2603.6,2603.0,2.2603]
[1724343459049,7.68183,2603.6,2603.0,2.2603]
[1724343459251,3.84099,2603.5,2603.0,2.2603]
[1724343459450,3.84099,2603.5,2603.1,0.610208]
[1724343459962,3.8413,2603.3,2603.0,2.2603]
[1724343460280,3.84107,2603.5,2603.0,2.2603]
[1724343461067,3.84122,2603.4,2603.0,2.2603]
[1724343461260,3.84107,2603.5,2603.0,2.2603]
[1724343462699,3.84116,2603.4,2603.0,2.2603]
[1724343462876,3.84116,2603.4,2603.1,0.22603]
[1724343464385,3.8413,2603.3,2603.0,2.2603]
[1724343465887,3.84135,2603.3,2603.0,2.2603]
[1724343466451,3.84116,2603.4,2603.0,2.2603]
[1724343466741,3.84105,2603.5,2603.1,0.22603]
[1724343467056,3.8407,2603.7,2603.2,2.4761]
[1724343467325,3.8407,2603.7,2603.2,6.31742]
[1724343467490,3.8407,2603.7,2603.2,2.4761]
[1724343467686,3.84092,2603.6,2603.2,2.4761]
[1724343467926,3.84092,2603.6,2603.3,0.654369]
[1724343468132,3.84098,2603.5,2603.3,0.654369]
[1724343468349,3.84098,2603.5,2603.2,2.4761]
[1724343468643,7.68209,2603.5,2603.2,2.4761]
[1724343468930,3.84098,2603.5,2603.2,2.4761]
[1724343469233,3.84098,2603.5,2603.2,2.746313]
[1724343469404,3.84087,2603.6,2603.2,2.746313]
[1724343470161,3.84057,2603.8,2603.2,6.587653]
[1724343470359,3.84049,2603.9,2603.3,2.3699]
[1724343470511,3.84054,2603.8,2603.4,0.6481453]
[1724343471201,3.84049,2603.9,2603.4,0.6481453]
[1724343471792,3.84054,2603.8,2603.4,0.6481453]
[1724343472039,3.0,2604.4,2603.4,0.6481453]
[1724343472040,3.84019,2604.1,2603.6,3.84082]
[1724343472243,3.84019,2604.1,2603.5,2.3699]
[1724343472244,3.84026,2604.0,2603.5,2.3699]
[1724343472531,3.84026,2604.0,2603.6,0.30180453]
[1724343472733,3.0,2604.4,2603.5,2.3699]
[1724343472734,3.8404,2603.9,2603.5,2.3699]
[1724343472931,3.84042,2603.9,2603.5,2.3699]
[1724343473903,7.68091,2603.9,2603.5,2.3699]
[1724343474128,3.84028,2604.0,2603.5,6.21084]
[1724343474335,3.84028,2604.0,2603.6,0.68589853]
[1724343474722,3.8404,2603.9,2603.6,0.68589853]
[1724343474927,3.8404,2603.9,2603.5,2.3699]
[1724343474928,3.84074,2603.7,2603.5,2.3699]
[1724343475139,3.8404,2603.9,2603.5,2.3699]
[1724343475442,3.0,2604.4,2603.7,2.3699]
[1724343475443,3.84016,2604.1,2603.7,2.3699]
[1724343475648,3.84016,2604.1,2603.7,2.990971]
[1724343475829,7.68037,2604.1,2603.7,2.990971]
[1724343476142,3.84026,2604.0,2603.7,2.990971]
[1724343477897,3.84026,2604.0,2603.7,2.3699]
[1724343478335,3.84054,2603.8,2603.7,2.3699]
[1724343479439,7.68108,2603.8,2603.7,2.3699]
[1724343479746,7.68108,2603.8,2603.2,7.630213]
[1724343479747,3.84111,2603.5,2603.3,2.4233]
[1724343480144,7.68226,2603.4,2603.3,2.4233]
[1724343480443,3.84113,2603.4,2603.3,2.4233]
[1724343480816,3.84098,2603.5,2603.3,2.4233]
[1724343481426,3.84077,2603.7,2603.3,2.66563]
[1724343481738,7.68157,2603.7,2603.3,2.66563]
[1724343482424,3.84086,2603.6,2603.3,2.66563]
[1724343482753,3.84091,2603.6,2603.3,2.4233]
[1724343483735,3.84061,2603.8,2603.3,2.4233]
[1724343483942,3.84078,2603.7,2603.3,2.4233]
[1724343484123,3.84061,2603.8,2603.3,2.4233]
[1724343484323,3.84061,2603.8,2603.2,3.84142]
[1724343484324,3.84033,2604.0,2603.5,2.282]
[1724343484702,3.84046,2603.9,2603.5,2.282]
[1724343486317,3.84025,2604.0,2603.6,0.9964]
[1724343486712,3.84003,2604.2,2603.7,2.282]
[1724343486955,3.84026,2604.0,2603.7,2.282]
[1724343487674,7.68058,2604.0,2603.7,2.282]
[1724343488727,3.84052,2603.9,2603.7,2.282]
[1724343489032,3.84054,2603.8,2603.7,2.282]
[1724343489230,3.84026,2604.0,2603.7,2.282]
[1724343490227,3.83999,2604.2,2603.4,7.36]
[1724343490425,3.84027,2604.0,2603.5,2.3552]
[1724343490927,3.84032,2604.0,2603.5,6.19615]
[1724343491665,3.83999,2604.2,2603.6,2.3552]
[1724343491867,3.84017,2604.1,2603.7,0.23552]
[1724343492282,3.83991,2604.3,2603.8,2.3552]
[1724343492431,3.83998,2604.2,2603.8,2.3552]
[1724343493267,3.83981,2604.3,2603.8,2.3552]
[1724343493429,3.84039,2603.9,2603.8,2.3552]
[1724343497470,3.84012,2604.1,2603.8,2.3552]
[1724343497676,3.84017,2604.1,2603.8,2.3552]
[1724343498346,7.68038,2604.1,2603.8,2.3552]
[1724343498873,7.68035,2604.1,2603.8,2.3552]
[1724343499242,7.68034,2604.1,2603.8,2.3552]
[1724343499449,3.84017,2604.1,2603.8,2.3552]
[1724343499634,7.68034,2604.1,2603.8,2.3552]
[1724343500029,3.84017,2604.1,2603.8,2.3552]
[1724343500845,3.84037,2604.0,2603.8,2.3552]
[1724343501053,3.84039,2603.9,2603.6,2.2743]
[1724343502983,3.84039,2603.9,2603.6,3.7573914]
[1724343503224,3.84039,2603.9,2603.6,2.2743]
[1724343503225,3.84054,2603.8,2603.6,2.2743]
[1724343503423,3.84039,2603.9,2603.6,2.2743]
[1724343504384,3.8402,2604.1,2603.6,6.11506]
[1724343504622,3.8402,2604.1,2603.7,0.995604]
[1724343504927,3.84025,2604.0,2603.6,2.2743]
[1724343505262,3.8399,2604.3,2603.6,2.2743]
[1724343505508,7.68099,2603.9,2603.6,2.2743]
[1724343505713,3.84049,2603.9,2603.6,2.2743]
[1724343506817,3.84063,2603.8,2603.6,2.2743]
[1724343507030,3.84068,2603.7,2603.6,2.2743]
[1724343507187,7.68128,2603.8,2603.3,2.2895]
[1724343507721,3.84071,2603.7,2603.3,2.2895]
[1724343508066,3.84064,2603.8,2603.3,2.2895]
[1724343508067,7.6813,2603.8,2603.3,2.2895]
[1724343508272,3.84064,2603.8,2603.3,2.2895]
[1724343508594,3.84064,2603.8,2603.3,6.75006538]
[1724343510391,3.84064,2603.8,2603.3,6.13076]
[1724343510892,3.84064,2603.8,2603.3,9.97196]
[1724343511477,3.84034,2604.0,2602.9,10.36]
[1724343511478,4.39003,2604.2,2603.7,2.3287]
[1724343511687,3.84003,2604.2,2603.7,6.16929]
[1724343512970,3.84003,2604.2,2603.7,10.00987]
[1724343513280,3.8398,2604.3,2603.8,3.84053]
[1724343513717,3.83995,2604.2,2603.7,6.16928]
[1724343514484,3.84019,2604.1,2603.7,2.3287]
[1724343517088,3.8404,2603.9,2603.7,2.3287]
[1724343519309,3.84025,2604.0,2603.7,2.3287]
[1724343519510,3.84002,2604.2,2603.7,2.3287]
[1724343519887,3.84002,2604.2,2603.7,6.16937]
[1724343520109,3.84002,2604.2,2603.7,7.170398]
[1724343520477,3.83975,2604.4,2603.8,2.2952]
[1724343520811,3.83975,2604.4,2603.8,6.13571]
[1724343521064,3.83951,2604.5,2604.0,3.84021]
[1724343521314,3.83951,2604.5,2604.1,2.3956]
[1724343521619,3.83966,2604.4,2604.1,2.3956]
[1724343522876,7.67939,2604.4,2604.1,2.3956]
[1724343523793,3.83981,2604.3,2604.1,2.3956]
[1724343524290,3.83995,2604.2,2604.1,2.3956]
[1724343527893,3.83946,2604.6,2604.1,4.07957]
[1724343528092,15.43442171,2605.5,2604.2,2.4752]
[1724343528320,3.83899,2604.9,2604.5,2.4752]
[1724343528493,3.83909,2604.8,2604.5,2.4752]
[1724343528690,3.83936,2604.6,2604.5,2.4752]
[1724343528916,2.3871,2605.0,2603.9,2.4752]
[1724343529122,3.83971,2604.4,2603.9,5.4752]
[1724343529303,3.83971,2604.4,2603.9,9.31559]
[1724343530100,3.83945,2604.6,2603.9,6.84032]
[1724343530435,3.83945,2604.6,2604.1,3.84009]
[1724343530591,3.83945,2604.6,2604.0,6.31544]
[1724343530796,3.83951,2604.5,2604.0,6.31544]
[1724343530994,3.83945,2604.6,2604.1,3.84008]
[1724343532020,3.83945,2604.6,2604.0,6.31543]
[1724343532404,3.83945,2604.6,2604.1,3.84008]
[1724343533020,3.83894,2604.9,2604.4,2.4201]
[1724343533220,3.83886,2605.0,2604.5,3.83943]
[1724343533901,3.83884,2605.0,2604.5,3.83943]
[1724343534101,7.67768,2605.0,2604.5,3.83943]
[1724343534302,3.83884,2605.0,2604.5,3.83943]
[1724343534899,3.83884,2605.0,2604.6,2.4214]
[1724343535101,7.67769,2605.0,2604.6,2.4214]
[1724343535945,3.83884,2605.0,2604.6,2.4214]
[1724343536137,7.67772,2605.0,2604.6,2.4214]
[1724343536295,3.83735345,2605.0,2604.6,2.4214]
[1724343536641,3.83907,2604.8,2604.6,2.4214]
[1724343537135,3.83921,2604.7,2604.6,2.4214]
[1724343537334,3.83907,2604.8,2604.2,7.36]
[1724343537335,3.83907,2604.8,2604.3,2.3268]
[1724343537661,3.83907,2604.8,2604.3,6.16659]
[1724343538099,3.83907,2604.8,2604.3,2.3268]
[1724343538912,3.83907,2604.8,2604.3,6.16657]
[1724343539111,3.83887,2605.0,2604.5,3.8395]
[1724343539313,7.67773,2605.0,2604.6,2.3268]
[1724343540170,3.83896,2604.9,2604.6,2.3268]
[1724343541245,7.6783,2604.8,2604.6,2.3268]
[1724343541559,3.83914,2604.8,2604.6,2.3268]
[1724343542578,7.67829,2604.8,2604.6,2.3268]
[1724343542774,3.83914,2604.8,2604.6,2.3268]
[1724343543082,3.83886,2605.0,2604.6,2.55948]
[1724343543083,7.67777,2605.0,2604.6,2.55948]
[1724343543367,3.83908,2604.8,2604.6,2.55948]
[1724343543595,3.83893,2604.9,2604.6,2.55948]
[1724343544961,3.83886,2605.0,2604.6,2.55948]
[1724343545175,3.83886,2605.0,2604.7,0.639895]
[1724343545701,7.67775,2605.0,2604.7,0.639895]
[1724343545995,3.83886,2605.0,2604.7,0.639895]
[1724343546339,3.83892,2604.9,2604.7,0.639895]
[1724343546783,3.83879,2605.0,2604.7,0.639895]
[1724343546988,3.83879,2605.0,2604.8,0.3199375]
[1724343547138,3.83863,2605.1,2604.8,0.3199375]
[1724343547352,3.83863,2605.1,2604.9,2.4939]
[1724343548150,3.83858,2605.2,2604.9,2.4939]
[1724343548351,3.83828,2605.4,2604.9,2.4939]
[1724343548552,3.83828,2605.4,2605.1,2.4939]
[1724343548991,3.83798,2605.6,2605.1,2.4939]
[1724343549296,14.03766,2605.8,2605.2,3.83846]
[1724343549297,3.83774,2605.7,2605.2,3.83846]
[1724343549455,3.83774,2605.7,2605.3,3.261601]
[1724343549882,3.83766,2605.8,2605.4,2.4939]
[1724343550194,3.83738,2606.0,2605.5,2.4939]
[1724343550366,6.398,2606.6,2605.5,2.4939]
[1724343550367,3.83788,2605.6,2605.5,2.4939]
[1724343550568,7.67576,2605.6,2605.5,2.4939]
[1724343550771,3.83788,2605.6,2605.5,2.4939]
[1724343551282,7.67576,2605.6,2604.9,3.83889]
[1724343551489,3.83819,2605.4,2605.0,2.3811]
[1724343552558,3.8377,2605.8,2605.0,2.3811]
[1724343552559,3.986,2605.7,2605.0,2.3811]
[1724343552793,3.83847,2605.3,2605.0,2.3811]
[1724343553004,3.83814,2605.5,2605.0,2.3811]
[1724343553302,3.83835,2605.3,2605.0,2.3811]
[1724343553803,3.83854,2605.2,2605.0,2.3811]
[1724343553967,3.83841,2605.3,2605.0,2.3811]
[1724343554368,3.83812,2605.5,2605.0,6.64344072]
[1724343556300,3.83818,2605.4,2605.0,2.80473072]
[1724343556721,3.83812,2605.5,2605.0,6.64349072]
[1724343556878,7.67628,2605.5,2605.0,6.64349072]
[1724343557082,3.83812,2605.5,2605.0,6.64349072]
[1724343557267,3.83812,2605.5,2605.1,1.04822607]
[1724343557461,3.83747,2605.9,2605.0,2.3811]
[1724343557462,3.83842,2605.3,2605.0,2.3811]
[1724343557700,3.83856,2605.2,2605.0,2.3811]
[1724343557900,3.83862,2605.1,2605.0,2.3811]
[1724343558358,3.83848,2605.2,2605.0,2.3811]
[1724343558762,3.83824,2605.4,2605.0,2.3811]
[1724343559001,3.83834,2605.3,2605.0,2.3811]
[1724343559208,3.83824,2605.4,2605.0,3.003116]
[1724343559413,3.83796,2605.6,2605.1,2.4495]
[1724343559616,3.83796,2605.6,2605.2,6.28794]
[1724343560138,3.83796,2605.6,2605.2,2.4495]
[1724343560423,3.83777,2605.7,2605.3,3.07831]
[1724343560629,3.83777,2605.7,2605.3,4.46711]
[1724343560833,5.49445,2605.9,2605.4,2.4495]
[1724343561173,3.83763,2605.8,2605.4,2.4495]
[1724343561368,3.83745,2605.9,2605.5,2.4495]
[1724343561612,3.83745,2605.9,2605.7,2.4495]
[1724343563112,7.67454,2606.1,2605.7,2.4495]
[1724343563407,3.83656,2606.5,2605.8,6.28702]
[1724343563596,3.83681,2606.4,2605.9,2.52623363]
[1724343563901,3.83687,2606.3,2606.0,0.63637436]
[1724343564102,3.83687,2606.3,2605.9,2.4495]
[1724343564311,3.83702,2606.2,2605.9,2.4495]
[1724343564489,3.83724,2606.1,2605.9,2.4495]
[1724343564691,3.83729,2606.0,2605.9,2.4495]
[1724343564893,3.837,2606.2,2605.9,2.4495]
[1724343565101,3.837,2606.2,2606.0,0.24495]
[1724343565669,7.67357,2606.4,2606.0,0.24495]
[1724343565919,3.837,2606.2,2605.9,2.4495]
[1724343567317,3.83689,2606.3,2605.9,2.4495]
[1724343567936,3.83681,2606.4,2605.9,2.4495]
[1724343567937,3.83679,2606.4,2605.9,6.28692]
[1724343568141,3.83679,2606.4,2606.1,2.4495]
[1724343568345,3.8365,2606.6,2606.1,6.28664]
[1724343568553,3.8365,2606.6,2606.2,2.4495]
[1724343568906,3.83682,2606.4,2606.2,2.4495]
[1724343569204,0.1255171,2606.9,2606.2,2.4495]
[1724343569205,3.8366,2606.5,2606.2,2.4495]
[1724343569419,3.83663,2606.5,2606.2,2.4495]
[1724343569818,3.975,2606.6,2605.9,2.4495]
[1724343570022,3.83729,2606.0,2605.9,2.4495]
[1724343571155,3.83729,2606.0,2604.8,24.14081369]
[1724343571156,3.83774,2605.7,2605.6,2.279]
[1724343571521,10.30517,2606.3,2605.2,2.279]
[1724343571522,3.83792,2605.6,2605.2,2.279]
[1724343571750,3.83805,2605.5,2605.2,2.5069]
[1724343571952,3.83792,2605.6,2605.2,2.5069]
[1724343572165,3.83805,2605.5,2605.2,2.5069]
[1724343572852,3.83792,2605.6,2605.2,2.5069]
[1724343573166,3.975,2605.7,2605.2,2.279]
[1724343573372,3.83816,2605.5,2605.2,2.279]
[1724343573523,3.83789,2605.6,2605.2,2.279]
[1724343573737,3.83803,2605.5,2605.2,2.279]
[1724343574694,3.83828,2605.4,2605.2,2.279]
[1724343575193,3.83852,2605.2,2604.9,2.4902]
[1724343575696,7.67657,2605.4,2604.9,3.123134]
[1724343576238,3.83828,2605.4,2604.9,3.123134]
[1724343576486,3.83828,2605.4,2604.9,6.961934]
[1724343576692,3.83828,2605.4,2604.9,6.961994]
[1724343576856,3.83796,2605.6,2605.0,2.452]
[1724343577057,3.83811,2605.5,2605.1,0.3084934]
[1724343577573,3.83796,2605.6,2605.1,0.3084934]
[1724343577944,3.83796,2605.6,2605.2,2.452]
[1724343578641,3.83804,2605.5,2605.2,2.452]
[1724343579261,7.67593,2605.6,2605.3,0.27604934]
[1724343579747,7.67598,2605.6,2605.3,0.27604934]
[1724343579956,3.83796,2605.6,2605.2,2.452]
[1724343580149,3.8382,2605.4,2605.2,2.452]
[1724343580377,3.8382,2605.4,2604.9,4.471824]
[1724343580378,3.8382,2605.4,2604.9,2.900634]
[1724343580682,3.8385,2605.2,2604.9,2.900634]
[1724343581184,7.67654,2605.4,2604.9,2.900634]
[1724343581385,3.83834,2605.3,2604.9,2.900634]
[1724343581754,3.83848,2605.2,2604.9,2.900634]
[1724343581956,10.22571,2605.7,2604.6,2.3252]
[1724343581957,3.83877,2605.0,2604.6,2.3252]
[1724343582158,6.3879,2605.7,2604.6,2.3252]
[1724343582159,3.839,2604.9,2604.6,2.3252]
[1724343582677,7.67745,2605.1,2604.6,2.3252]
[1724343583045,7.67742,2605.1,2604.6,2.3252]
[1724343583252,7.67744,2605.1,2604.6,2.3252]
[1724343583452,3.83868,2605.1,2604.7,1.352469]
[1724343583882,3.83878,2605.0,2604.7,1.352469]
[1724343584473,3.83868,2605.1,2604.7,1.352469]
[1724343584788,3.83879,2605.0,2604.7,1.352469]
[1724343585189,3.83879,2605.0,2604.8,0.3677669]
[1724343585553,7.67647,2605.4,2604.9,6.2523]
[1724343585755,3.83821,2605.4,2604.9,6.2523]
[1724343586079,3.83821,2605.4,2604.9,2.4134]
[1724343586278,3.83834,2605.3,2604.9,3.59459359]
[1724343586980,3.83813,2605.5,2604.9,7.43343359]
[1724343587183,3.83799,2605.6,2604.9,7.43343359]
[1724343587184,3.83799,2605.6,2605.0,2.3055]
[1724343587358,3.83799,2605.6,2604.8,0.3677669]
[1724343587359,3.83762,2605.8,2605.3,2.3055]
[1724343587558,3.83762,2605.8,2605.4,0.614396]
[1724343587995,3.83749,2605.9,2605.4,0.614396]
[1724343588196,3.83738,2606.0,2605.6,2.3522]
[1724343588499,3.83759,2605.8,2605.6,2.3522]
[1724343589484,3.83738,2606.0,2605.6,2.6488596]
[1724343590107,3.8375,2605.9,2605.6,2.6488596]
[1724343590312,3.83738,2606.0,2605.6,2.6488596]
[1724343590882,3.83738,2606.0,2605.6,6.4867396]
[1724343591507,3.8371,2606.2,2605.6,6.4866496]
[1724343591693,3.83685,2606.3,2605.8,2.3077]
[1724343591898,3.83685,2606.3,2605.8,6.14528]
[1724343592631,3.83685,2606.3,2605.9,2.3077]
[1724343592985,3.83671,2606.4,2605.9,6.14514]
[1724343593190,7.67352,2606.4,2606.0,0.998265]
[1724343593427,7.67351,2606.4,2606.0,0.998265]
[1724343593795,3.83686,2606.3,2606.0,0.998265]
[1724343594929,3.83686,2606.3,2605.9,2.3077]
[1724343595428,7.67355,2606.4,2605.9,2.3077]
[1724343595592,3.83671,2606.4,2605.9,2.3077]
[1724343595924,3.83693,2606.3,2605.9,2.3077]
[1724343596343,3.83671,2606.4,2605.9,6.14514]
[1724343596544,3.83637,2606.7,2606.0,4.45172]
[1724343596762,3.83656,2606.5,2606.0,4.45172]
[1724343596966,3.83656,2606.5,2606.1,2.2889]
[1724343597270,3.83641,2606.6,2606.2,0.674062]
[1724343597552,3.83649,2606.6,2606.2,0.674062]
[1724343598831,3.8366,2606.5,2606.2,0.674062]
[1724343599153,3.83686,2606.3,2606.1,2.2889]
[1724343599807,3.83672,2606.4,2606.1,2.2889]
[1724343600033,3.83663,2606.5,2606.1,2.2889]
[1724343600392,3.83613,2606.8,2606.2,2.3108]
[1724343600528,3.83613,2606.8,2606.3,0.614781]
[1724343600529,3.83636,2606.7,2606.3,0.614781]
[1724343601387,0.1255171,2606.9,2606.5,2.3159]
[1724343601694,3.83612,2606.8,2606.5,2.3159]
[1724343602472,0.1255171,2606.9,2606.5,2.3159]
[1724343602789,0.1255171,2606.9,2606.6,0.998915]
[1724343602934,3.9615571,2606.9,2606.7,2.3088]
[1724343603837,0.1255171,2606.9,2606.7,2.3088]
[1724343605773,3.83612,2606.8,2606.7,2.3088]
[1724343606077,3.9615071,2606.9,2606.2,11.19692]
[1724343606078,3.83656,2606.5,2606.4,2.2885]
[1724343606305,0.1255171,2606.9,2606.4,2.2885]
[1724343606306,3.83643,2606.6,2606.4,2.2885]
[1724343606507,3.83619,2606.8,2606.4,2.2885]
[1724343606946,3.8365,2606.6,2606.2,11.215912]
[1724343607156,3.8365,2606.6,2606.2,9.7125]
[1724343607947,7.67245,2606.8,2606.2,13.54948]
[1724343608160,3.83635,2606.7,2606.2,13.54948]
[1724343608377,3.8362,2606.8,2606.2,17.38636]
[1724343608575,0.1255171,2606.9,2606.4,2.485]
[1724343608781,0.1255171,2606.9,2606.8,13.89046]
[1724343609150,0.1255171,2606.9,2606.8,17.45547717]
[1724343609351,0.1255171,2606.9,2606.8,20.72658]
[1724343609555,0.1255171,2606.9,2606.8,23.196738]
[1724343610982,3.83401,2608.3,2607.8,2.2728]
[1724343611160,3.8337,2608.5,2607.8,2.2728]
[1724343611161,3.8337,2608.5,2607.9,3.83449]
[1724343611398,3.8337,2608.5,2608.0,3.91099644]
[1724343611598,3.8337,2608.5,2608.1,2.34947519]
[1724343611806,3.83399,2608.3,2608.1,2.2728]
[1724343612318,3.83399,2608.3,2607.9,2.2728]
[1724343612701,3.83435,2608.0,2607.6,2.2728]
[1724343613077,2.3679,2608.3,2607.3,2.2728]
[1724343613290,3.83488,2607.7,2607.3,2.2728]
[1724343613486,3.83488,2607.7,2607.3,2.883644]
[1724343613786,3.83488,2607.7,2607.3,2.2728]
[1724343613988,3.8346,2607.9,2607.3,6.1081]
[1724343614501,0.55,2608.2,2607.3,2.2728]
[1724343614502,3.83428,2608.1,2607.3,2.2728]
[1724343614670,7.66861,2608.1,2607.6,2.2728]
[1724343614874,3.83428,2608.1,2607.6,2.2728]
[1724343615326,3.83397,2608.3,2607.5,2.2728]
[1724343615507,3.83397,2608.3,2607.4,0.22728]
[1724343615508,3.83397,2608.3,2607.7,7.66942]
[1724343615816,3.83397,2608.3,2607.7,3.83471]
[1724343616019,3.83406,2608.2,2607.7,4.828961]
[1724343616189,2.77,2608.8,2607.8,2.2728]
[1724343616393,3.0,2608.7,2607.8,2.2728]
[1724343616594,3.83414,2608.2,2607.8,2.2728]
[1724343616821,3.8341,2608.2,2607.8,2.2728]
[1724343617122,3.58426,2608.1,2607.8,2.2728]
[1724343617323,3.83411,2608.2,2607.8,2.2728]
[1724343617621,3.8345,2607.9,2607.5,2.475]
[1724343617918,3.83427,2608.1,2607.5,2.475]
[1724343618122,3.83427,2608.1,2607.5,6.31002]
[1724343618291,3.83427,2608.1,2607.6,3.83493]
[1724343618613,3.83422,2608.1,2607.5,4.248258]
[1724343618776,3.83442,2608.0,2607.5,4.248258]
[1724343619003,3.834,2608.3,2607.6,2.475]
[1724343619235,3.834,2608.3,2607.7,3.83471]
[1724343619431,3.834,2608.3,2607.8,3.83462]
[1724343619643,3.83355,2608.6,2608.0,3.83424]
[1724343620015,3.83373,2608.5,2607.9,2.475]
[1724343620217,3.0,2608.7,2607.9,2.475]
[1724343620218,3.83393,2608.3,2607.9,2.475]
[1724343620418,3.834,2608.3,2607.9,2.475]
[1724343620743,3.83379,2608.4,2607.9,6.30939]
[1724343621040,3.83409,2608.2,2607.9,2.475]
[1724343621661,7.61824,2608.2,2607.9,2.475]
[1724343621950,3.83457,2607.9,2607.3,11.19528]
[1724343622158,3.83457,2607.9,2607.4,2.4874]
[1724343622370,3.83428,2608.1,2607.3,18.078665]
[1724343622371,3.83428,2608.1,2607.6,2.4874]
[1724343622519,3.83428,2608.1,2607.6,6.32232]
[1724343622710,3.83371,2608.5,2607.9,6.0934]
[1724343622942,3.83371,2608.5,2608.0,3.83431]
[1724343623154,3.83371,2608.5,2608.1,2.2589]
[1724343623463,3.83338,2608.7,2608.2,3.83398]
[1724343623631,3.83355,2608.6,2608.1,2.2589]
[1724343623831,3.83318,2608.8,2608.1,6.09301]
[1724343624010,3.83312,2608.9,2608.3,3.83389]
[1724343624011,3.83311,2608.9,2608.3,3.83389]
[1724343624216,3.83311,2608.9,2608.4,2.2589]
[1724343624411,3.83319,2608.8,2608.4,2.2589]
[1724343624745,3.83325,2608.8,2608.4,2.2589]
[1724343624944,3.833,2609.0,2608.6,2.4682]
[1724343625431,3.83296,2609.0,2608.6,2.4682]
[1724343625633,3.83305,2608.9,2608.6,2.4682]
[1724343625927,3.83313,2608.9,2608.2,6.26167]
[1724343626141,3.83325,2608.8,2608.3,5.57945]
[1724343626345,3.83291,2609.0,2608.5,2.3262]
[1724343626661,3.8328,2609.1,2608.6,3.91011673]
[1724343626865,3.0,2609.4,2608.6,3.91011673]
[1724343626866,3.83262,2609.2,2608.7,2.3262]
[1724343627172,3.8323,2609.4,2608.8,3.90979]
[1724343627325,3.83245,2609.3,2608.8,3.90979]
[1724343627518,3.83261,2609.2,2608.7,6.1594]
[1724343627832,3.83246,2609.3,2608.7,6.1594]
[1724343628025,3.83246,2609.3,2608.7,6.68120385]
[1724343628439,3.83246,2609.3,2608.8,2.3262]
[1724343629155,3.83246,2609.3,2608.8,6.15936]
[1724343629369,0.1255171,2609.5,2609.2,2.392]
[1724343629561,0.1255171,2609.5,2609.3,3.83231]
[1724343629712,0.1255171,2609.5,2609.2,2.6312]
[1724343630818,3.9577971,2609.5,2609.2,2.6312]
[1724343631046,0.1255171,2609.5,2609.2,2.392]
[1724343631434,0.1255171,2609.5,2609.2,6.22458]
[1724343631764,0.1255171,2609.5,2609.4,6.20269]
[1724343632069,0.1255171,2609.5,2609.4,10.03498]
[1724343632362,0.1255171,2609.5,2609.4,6.20269]
[1724343632532,0.1255171,2609.5,2609.4,7.2062]
[1724343633142,0.1255171,2609.5,2609.4,3.37391]
[1724343633347,0.1255171,2609.5,2609.4,2.3704]
[1724343633921,0.1255171,2609.5,2609.4,6.20269]
[1724343634261,0.1255171,2609.5,2609.4,10.03498]
[1724343634859,0.01299405,2609.5,2609.4,13.86727]
[1724343635235,0.01299405,2609.5,2609.4,10.03498]
[1724343635443,0.01299405,2609.5,2609.4,14.819231]
[1724343635642,0.01299405,2609.5,2609.4,7.154651]
[1724343635847,0.01299405,2609.5,2609.4,4.154651]
[1724343636059,3.83249,2609.3,2609.0,2.4788]
[1724343636236,3.84514405,2609.5,2609.0,6.31166]
[1724343636418,0.01299405,2609.5,2609.2,3.83256]
[1724343636619,0.01299405,2609.5,2609.3,3.83243]
[1724343636815,0.01299405,2609.5,2609.4,3.83229]
[1724343637066,0.01299405,2609.5,2609.2,3.83256]
[1724343637245,0.01299405,2609.5,2609.0,6.31156]
[1724343637640,3.84519405,2609.5,2609.0,6.31156]
[1724343637839,3.84519405,2609.5,2609.0,2.4788]
[1724343638319,3.84519405,2609.5,2609.0,6.31163]
[1724343638665,3.84524405,2609.5,2608.7,3.83321]
[1724343638874,3.84524405,2609.5,2608.6,2.2749]
[1724343638875,3.83251,2609.3,2608.6,2.2749]
[1724343639076,0.01299405,2609.5,2608.9,3.83293]
[1724343639277,0.01299405,2609.5,2608.6,2.50239]
[1724343639278,0.01299405,2609.5,2608.7,7.66642]
[1724343639431,3.83246,2609.3,2608.8,3.83303]
[1724343639758,3.83246,2609.3,2608.8,3.83317]
[1724343639922,3.84522405,2609.5,2608.8,3.83309]
[1724343640121,3.84522405,2609.5,2608.8,3.83308]
[1724343640347,0.01299405,2609.5,2609.2,3.83257]
[1724343640549,0.01299405,2609.5,2609.1,2.4827]
[1724343640747,0.01299405,2609.5,2609.2,3.83256]
[1724343641150,0.01299405,2609.5,2609.4,3.83229]
[1724343641333,0.01299405,2609.5,2609.4,7.74121222]
[1724343641520,0.01299405,2609.5,2609.4,10.14728]
[1724343641750,0.01299405,2609.5,2609.4,10.64311422]
[1724343641925,0.01299405,2609.5,2609.4,14.47540422]
[1724343642270,0.01299405,2609.5,2609.4,15.52859082]
[1724343642567,0.01299405,2609.5,2609.4,18.52859082]
[1724343643062,0.01299405,2609.5,2609.4,10.86401082]
[1724343643251,0.01299405,2609.5,2609.4,14.69630082]